[Event "Late-Titled-Tuesday-Blitz-September-26-2023"]
[Site "Chess.com"]
[Date "2023.09.26"]
[Round "10"]
[White "TheMagician"]
[Black "rdarruda"]
[Result "0-1"]
[WhiteElo "2272"]
[BlackElo "2480"]
[TimeControl "180+1"]
[EndTime "15:50:20 PDT"]
[Termination "rdarruda won on time"]

1. e4 {[%clk 0:03:00.9]} 1... c5 {[%clk 0:02:46.9]} 2. Nf3 {[%clk 0:03:00.4]}
2... Nc6 {[%clk 0:02:46.4]} 3. b3 {[%clk 0:02:58.8]} 3... e5 {[%clk 0:02:45.4]}
4. Bb5 {[%clk 0:02:57.1]} 4... Nf6 {[%clk 0:02:43.5]} 5. Bxc6 {[%clk 0:02:52.3]}
5... bxc6 {[%clk 0:02:39.5]} 6. d3 {[%clk 0:02:51.4]} 6... d6 {[%clk 0:02:39.1]}
7. O-O {[%clk 0:02:34]} 7... g6 {[%clk 0:02:39.1]} 8. Nbd2 {[%clk 0:02:30.7]}
8... Bg7 {[%clk 0:02:38.4]} 9. Nc4 {[%clk 0:02:30.6]} 9... O-O {[%clk
0:02:37.7]} 10. Bd2 {[%clk 0:02:20]} 10... Nh5 {[%clk 0:02:34.2]} 11. Ba5 {[%clk
0:02:16.3]} 11... Qe7 {[%clk 0:02:31.3]} 12. Re1 {[%clk 0:02:03.8]} 12... Be6
{[%clk 0:02:28.3]} 13. Ne3 {[%clk 0:01:58.1]} 13... f5 {[%clk 0:02:25.1]} 14.
exf5 {[%clk 0:01:55.1]} 14... gxf5 {[%clk 0:02:23.5]} 15. Nxe5 {[%clk
0:01:50.4]} 15... Bxe5 {[%clk 0:02:22.5]} 16. Qxh5 {[%clk 0:01:49.1]} 16... Bxa1
{[%clk 0:02:22.5]} 17. Rxa1 {[%clk 0:01:48.6]} 17... f4 {[%clk 0:02:18.9]} 18.
Nc4 {[%clk 0:01:35]} 18... Bxc4 {[%clk 0:02:15.1]} 19. bxc4 {[%clk 0:01:25.6]}
19... Qe5 {[%clk 0:02:15.2]} 20. Qg4+ {[%clk 0:01:18.8]} 20... Qg7 {[%clk
0:02:15]} 21. Qe6+ {[%clk 0:01:15.8]} 21... Kh8 {[%clk 0:02:11.7]} 22. Re1
{[%clk 0:01:13.5]} 22... f3 {[%clk 0:01:58.5]} 23. g3 {[%clk 0:01:02.4]} 23...
Rf6 {[%clk 0:01:48.3]} 24. Qe7 {[%clk 0:00:52.4]} 24... Qxe7 {[%clk 0:01:41.1]}
25. Rxe7 {[%clk 0:00:51.8]} 25... Rg6 {[%clk 0:01:41.3]} 26. h4 {[%clk
0:00:44.3]} 26... Kg8 {[%clk 0:01:38.9]} 27. Bc3 {[%clk 0:00:43.5]} 27... h6
{[%clk 0:01:26.3]} 28. Kh2 {[%clk 0:00:38.4]} 28... Kf8 {[%clk 0:01:26.3]} 29.
Rh7 {[%clk 0:00:37.5]} 29... Re8 {[%clk 0:01:26.1]} 30. h5 {[%clk 0:00:32.3]}
30... Rg5 {[%clk 0:01:23.1]} 31. Rxh6 {[%clk 0:00:28.1]} 31... Re2 {[%clk
0:01:22.8]} 32. Rf6+ {[%clk 0:00:21.1]} 32... Ke7 {[%clk 0:01:19.8]} 33. Rxf3
{[%clk 0:00:20.9]} 33... Rxh5+ {[%clk 0:01:20]} 34. Kg2 {[%clk 0:00:20.1]} 34...
Rxc2 {[%clk 0:01:20.5]} 35. g4 {[%clk 0:00:20.4]} 35... Rh7 {[%clk 0:01:17]} 36.
Bf6+ {[%clk 0:00:18.4]} 36... Ke6 {[%clk 0:01:10.8]} 37. g5 {[%clk 0:00:18.7]}
37... Kf7 {[%clk 0:00:57.2]} 38. a4 {[%clk 0:00:15.8]} 38... Kg6 {[%clk
0:00:57.4]} 39. Re3 {[%clk 0:00:13.5]} 39... Rh4 {[%clk 0:00:48]} 40. Kg3 {[%clk
0:00:08.7]} 40... Rh1 {[%clk 0:00:40]} 0-1

[Event "Late-Titled-Tuesday-Blitz-September-26-2023"]
[Site "Chess.com"]
[Date "2023.09.26"]
[Round "10"]
[White "jaskol95"]
[Black "ljm509"]
[Result "1-0"]
[WhiteElo "2622"]
[BlackElo "2355"]
[TimeControl "180+1"]
[EndTime "15:50:25 PDT"]
[Termination "jaskol95 won on time"]

1. d4 {[%clk 0:03:00.9]} 1... Nf6 {[%clk 0:02:56.8]} 2. Nc3 {[%clk 0:03:01]}
2... d5 {[%clk 0:02:56.5]} 3. Bf4 {[%clk 0:03:01.4]} 3... a6 {[%clk 0:02:57]} 4.
e3 {[%clk 0:03:01.6]} 4... e6 {[%clk 0:02:57.1]} 5. a3 {[%clk 0:02:58.4]} 5...
c5 {[%clk 0:02:56.7]} 6. Nf3 {[%clk 0:02:58]} 6... Nc6 {[%clk 0:02:56.7]} 7. Ne5
{[%clk 0:02:56.4]} 7... Qb6 {[%clk 0:02:54]} 8. Nxc6 {[%clk 0:02:37.7]} 8...
bxc6 {[%clk 0:02:53.4]} 9. dxc5 {[%clk 0:02:27.5]} 9... Qxc5 {[%clk 0:02:53.3]}
10. Bd3 {[%clk 0:02:24.3]} 10... Be7 {[%clk 0:02:52.5]} 11. O-O {[%clk 0:02:24]}
11... a5 {[%clk 0:02:50.3]} 12. Qf3 {[%clk 0:02:16.1]} 12... O-O {[%clk
0:02:49.7]} 13. Be5 {[%clk 0:02:11.5]} 13... Nd7 {[%clk 0:02:34]} 14. Na4 {[%clk
0:01:49.8]} 14... Qa7 {[%clk 0:02:25.4]} 15. Bc3 {[%clk 0:01:45.6]} 15... e5
{[%clk 0:02:12.6]} 16. e4 {[%clk 0:01:37.2]} 16... d4 {[%clk 0:02:12.1]} 17. Bd2
{[%clk 0:01:37.5]} 17... Ba6 {[%clk 0:01:57.6]} 18. b3 {[%clk 0:01:24.1]} 18...
Bb5 {[%clk 0:01:52.1]} 19. Nb2 {[%clk 0:01:22.2]} 19... a4 {[%clk 0:01:50.3]}
20. bxa4 {[%clk 0:01:13.7]} 20... Bxa4 {[%clk 0:01:27.7]} 21. Qg4 {[%clk
0:01:03.7]} 21... Nf6 {[%clk 0:01:26.6]} 22. Qg3 {[%clk 0:01:04.1]} 22... Qc7
{[%clk 0:01:13.4]} 23. Nc4 {[%clk 0:01:01.7]} 23... Nd7 {[%clk 0:00:56.9]} 24.
f4 {[%clk 0:00:57.8]} 24... f6 {[%clk 0:00:44.2]} 25. fxe5 {[%clk 0:00:42.4]}
25... fxe5 {[%clk 0:00:43.1]} 26. Bh6 {[%clk 0:00:42]} 26... Rxf1+ {[%clk
0:00:37.9]} 27. Rxf1 {[%clk 0:00:40.6]} 27... g6 {[%clk 0:00:34.8]} 28. Qg4
{[%clk 0:00:27.6]} 28... Nf8 {[%clk 0:00:02.6]} 29. Bxf8 {[%clk 0:00:13.3]}
29... Bxf8 {[%clk 0:00:01.4]} 30. Qe6+ {[%clk 0:00:12.5]} 1-0

[Event "Late-Titled-Tuesday-Blitz-September-26-2023"]
[Site "Chess.com"]
[Date "2023.09.26"]
[Round "10"]
[White "KaydenTroffChess"]
[Black "Rital44"]
[Result "1-0"]
[WhiteElo "2757"]
[BlackElo "2514"]
[TimeControl "180+1"]
[EndTime "15:50:29 PDT"]
[Termination "KaydenTroffChess won by resignation"]

1. d4 {[%clk 0:03:00.9]} 1... g6 {[%clk 0:02:57.1]} 2. c4 {[%clk 0:03:00.9]}
2... Bg7 {[%clk 0:02:57.7]} 3. Nc3 {[%clk 0:03:00.9]} 3... d6 {[%clk 0:02:57.4]}
4. e4 {[%clk 0:03:00]} 4... Nc6 {[%clk 0:02:56.9]} 5. Nf3 {[%clk 0:02:58.9]}
5... Bg4 {[%clk 0:02:55.9]} 6. d5 {[%clk 0:02:55.6]} 6... Nd4 {[%clk 0:02:50.9]}
7. Be2 {[%clk 0:02:42.5]} 7... Nxe2 {[%clk 0:02:49.3]} 8. Nxe2 {[%clk
0:02:37.6]} 8... Bxf3 {[%clk 0:02:45.3]} 9. gxf3 {[%clk 0:02:37.4]} 9... Qd7
{[%clk 0:02:46]} 10. h4 {[%clk 0:02:36.8]} 10... h5 {[%clk 0:02:45.8]} 11. Be3
{[%clk 0:02:29.8]} 11... Nf6 {[%clk 0:02:33]} 12. Qd2 {[%clk 0:02:27.1]} 12...
c6 {[%clk 0:02:30.2]} 13. Rc1 {[%clk 0:02:17.3]} 13... a6 {[%clk 0:02:18]} 14.
Kf1 {[%clk 0:02:09.7]} 14... c5 {[%clk 0:02:14.3]} 15. b4 {[%clk 0:02:05.4]}
15... cxb4 {[%clk 0:02:10.7]} 16. Qxb4 {[%clk 0:02:06]} 16... O-O {[%clk
0:02:11.1]} 17. c5 {[%clk 0:02:00.1]} 17... dxc5 {[%clk 0:02:08.5]} 18. Bxc5
{[%clk 0:01:59]} 18... Rfc8 {[%clk 0:01:59.8]} 19. Kg2 {[%clk 0:01:57.9]} 19...
a5 {[%clk 0:01:54]} 20. Qb3 {[%clk 0:01:52.5]} 20... Ne8 {[%clk 0:01:15.3]} 21.
Rc2 {[%clk 0:01:14.7]} 21... Bf6 {[%clk 0:00:53.7]} 22. Rhc1 {[%clk 0:00:28.7]}
22... Bxh4 {[%clk 0:00:43.1]} 23. Be3 {[%clk 0:00:25.4]} 23... Bf6 {[%clk
0:00:37.3]} 24. Nf4 {[%clk 0:00:22]} 24... h4 {[%clk 0:00:32.2]} 25. Nd3 {[%clk
0:00:20.4]} 25... h3+ {[%clk 0:00:31.7]} 26. Kh2 {[%clk 0:00:20.6]} 26... e5
{[%clk 0:00:25.7]} 27. dxe6 {[%clk 0:00:18.4]} 27... fxe6 {[%clk 0:00:20.6]} 28.
Nf4 {[%clk 0:00:18.2]} 28... Kf7 {[%clk 0:00:20.4]} 29. Rd2 {[%clk 0:00:15.8]}
29... Qe7 {[%clk 0:00:16.7]} 30. Rcd1 {[%clk 0:00:16]} 30... Rc7 {[%clk
0:00:12.9]} 31. Bc5 {[%clk 0:00:12.3]} 31... Be5 {[%clk 0:00:13.5]} 32. Bxe7
{[%clk 0:00:11.7]} 32... Bxf4+ {[%clk 0:00:13.5]} 33. Kxh3 {[%clk 0:00:12.4]}
33... Rxe7 {[%clk 0:00:12.2]} 34. Rd7 {[%clk 0:00:12.1]} 34... Nf6 {[%clk
0:00:04.6]} 35. Rxe7+ {[%clk 0:00:12.2]} 35... Kxe7 {[%clk 0:00:04.4]} 36. Qxb7+
{[%clk 0:00:12.8]} 1-0

[Event "Late-Titled-Tuesday-Blitz-September-26-2023"]
[Site "Chess.com"]
[Date "2023.09.26"]
[Round "10"]
[White "Saif_Malek04"]
[Black "EsmeraldasAnderson03"]
[Result "0-1"]
[WhiteElo "2553"]
[BlackElo "2445"]
[TimeControl "180+1"]
[EndTime "15:50:35 PDT"]
[Termination "EsmeraldasAnderson03 won by checkmate"]

1. e4 {[%clk 0:03:00.9]} 1... c5 {[%clk 0:02:59.5]} 2. Nf3 {[%clk 0:03:01.6]}
2... d6 {[%clk 0:02:59.8]} 3. d4 {[%clk 0:03:02.4]} 3... cxd4 {[%clk 0:03:00.7]}
4. Nxd4 {[%clk 0:03:02]} 4... Nf6 {[%clk 0:03:01.5]} 5. c3 {[%clk 0:03:02.4]}
5... a6 {[%clk 0:03:02.3]} 6. Bd3 {[%clk 0:03:00.7]} 6... e5 {[%clk 0:03:02.8]}
7. Ne2 {[%clk 0:03:00.9]} 7... Be7 {[%clk 0:03:03.5]} 8. O-O {[%clk 0:03:01.3]}
8... O-O {[%clk 0:03:04.2]} 9. f4 {[%clk 0:03:01.5]} 9... Nc6 {[%clk 0:03:04.6]}
10. Qe1 {[%clk 0:03:01.8]} 10... exf4 {[%clk 0:03:03.3]} 11. Nxf4 {[%clk
0:03:01.6]} 11... Ne5 {[%clk 0:03:04.1]} 12. Bc2 {[%clk 0:03:01]} 12... b5
{[%clk 0:03:03]} 13. Qg3 {[%clk 0:03:00.8]} 13... Bb7 {[%clk 0:03:03.3]} 14. Nd5
{[%clk 0:03:00.1]} 14... Nxd5 {[%clk 0:03:00.5]} 15. exd5 {[%clk 0:03:01]} 15...
Bxd5 {[%clk 0:03:00.6]} 16. Bh6 {[%clk 0:02:59.3]} 16... Ng6 {[%clk 0:02:59.7]}
17. Be3 {[%clk 0:02:58.1]} 17... Re8 {[%clk 0:02:56.2]} 18. Nd2 {[%clk
0:02:57.6]} 18... Bh4 {[%clk 0:02:55.5]} 19. Qh3 {[%clk 0:02:56.4]} 19... Be6
{[%clk 0:02:40.8]} 20. Bf5 {[%clk 0:02:55.2]} 20... Bxf5 {[%clk 0:02:40.5]} 21.
Rxf5 {[%clk 0:02:56.1]} 21... Qd7 {[%clk 0:02:39.6]} 22. Bd4 {[%clk 0:02:54.2]}
22... Re2 {[%clk 0:02:26.7]} 23. Nf3 {[%clk 0:02:43.6]} 23... Bd8 {[%clk
0:02:26.4]} 24. Rf1 {[%clk 0:02:39.1]} 24... h6 {[%clk 0:01:55.2]} 25. Bxg7
{[%clk 0:02:07.5]} 25... Kxg7 {[%clk 0:01:54]} 26. Nd4 {[%clk 0:02:07.3]} 26...
Re7 {[%clk 0:01:42.8]} 27. Qf3 {[%clk 0:01:52.2]} 27... Rc8 {[%clk 0:01:33.2]}
28. Rh5 {[%clk 0:01:43.7]} 28... Bb6 {[%clk 0:01:22.5]} 29. Qf6+ {[%clk
0:01:42]} 29... Kh7 {[%clk 0:01:07.8]} 30. Rf4 {[%clk 0:01:35.6]} 30... Bxd4+
{[%clk 0:01:07.8]} 31. Rxd4 {[%clk 0:01:32.5]} 31... Re1+ {[%clk 0:01:04.1]} 32.
Kf2 {[%clk 0:01:31.9]} 32... Qe6 {[%clk 0:01:03.9]} 33. Rxh6+ {[%clk 0:01:05.9]}
33... Kg8 {[%clk 0:01:03.2]} 34. Qf3 {[%clk 0:00:27.8]} 34... Re8 {[%clk
0:00:53.6]} 35. g3 {[%clk 0:00:11.9]} 35... Qe2+ {[%clk 0:00:50.5]} 36. Qxe2
{[%clk 0:00:11.7]} 36... R8xe2+ {[%clk 0:00:51.4]} 37. Kf3 {[%clk 0:00:12.3]}
37... Ne5+ {[%clk 0:00:52.3]} 38. Kf4 {[%clk 0:00:11.2]} 38... Rf1+ {[%clk
0:00:48.9]} 39. Kg5 {[%clk 0:00:09.3]} 39... Nf3+ {[%clk 0:00:49.2]} 40. Kg4
{[%clk 0:00:05.9]} 40... Nxd4 {[%clk 0:00:49]} 41. cxd4 {[%clk 0:00:06.5]} 41...
Re4+ {[%clk 0:00:49.3]} 42. Kg5 {[%clk 0:00:04.7]} 42... Rxd4 {[%clk 0:00:50.2]}
43. h3 {[%clk 0:00:04]} 43... Kg7 {[%clk 0:00:45.9]} 44. g4 {[%clk 0:00:01.2]}
44... Rd5+ {[%clk 0:00:45.7]} 45. Kh4 {[%clk 0:00:02]} 45... Kxh6 {[%clk
0:00:45.7]} 46. b4 {[%clk 0:00:02.8]} 46... Rf3 {[%clk 0:00:44.9]} 47. a4 {[%clk
0:00:03]} 47... Rdd3 {[%clk 0:00:44.2]} 48. g5+ {[%clk 0:00:02.4]} 48... Kg6
{[%clk 0:00:44.8]} 49. axb5 {[%clk 0:00:02.6]} 49... Rf4# {[%clk 0:00:45]} 0-1

[Event "Late-Titled-Tuesday-Blitz-September-26-2023"]
[Site "Chess.com"]
[Date "2023.09.26"]
[Round "10"]
[White "Arteler"]
[Black "krzyzan94"]
[Result "1-0"]
[WhiteElo "2605"]
[BlackElo "2774"]
[TimeControl "180+1"]
[EndTime "15:50:36 PDT"]
[Termination "Arteler won by checkmate"]

1. e4 {[%clk 0:03:00.3]} 1... c6 {[%clk 0:02:58.6]} 2. Nc3 {[%clk 0:02:59.1]}
2... d5 {[%clk 0:02:55.3]} 3. Qf3 {[%clk 0:02:59.4]} 3... e6 {[%clk 0:02:52.1]}
4. d4 {[%clk 0:02:54.5]} 4... dxe4 {[%clk 0:02:36.4]} 5. Nxe4 {[%clk 0:02:54.9]}
5... Nd7 {[%clk 0:02:37]} 6. Bd3 {[%clk 0:02:50]} 6... Ngf6 {[%clk 0:02:36.9]}
7. Ne2 {[%clk 0:02:45.4]} 7... Nxe4 {[%clk 0:02:36.6]} 8. Qxe4 {[%clk
0:02:45.6]} 8... Nf6 {[%clk 0:02:37]} 9. Qh4 {[%clk 0:02:43]} 9... Be7 {[%clk
0:02:37.1]} 10. Bg5 {[%clk 0:02:42.7]} 10... h6 {[%clk 0:02:32.7]} 11. O-O-O
{[%clk 0:02:40.8]} 11... Qd5 {[%clk 0:02:32.2]} 12. f4 {[%clk 0:01:58.4]} 12...
Qxa2 {[%clk 0:02:27.9]} 13. g4 {[%clk 0:01:58.2]} 13... Bd7 {[%clk 0:02:11]} 14.
Bxf6 {[%clk 0:01:49]} 14... Bxf6 {[%clk 0:02:09.9]} 15. g5 {[%clk 0:01:49.4]}
15... Be7 {[%clk 0:02:05.3]} 16. Kd2 {[%clk 0:01:49.3]} 16... O-O-O {[%clk
0:01:57.6]} 17. Ra1 {[%clk 0:01:49]} 17... Qd5 {[%clk 0:01:55.3]} 18. c4 {[%clk
0:01:41.7]} 18... Bb4+ {[%clk 0:01:35.4]} 19. Kc2 {[%clk 0:01:38.7]} 19... Qf3
{[%clk 0:01:35.2]} 20. Rhf1 {[%clk 0:01:27.3]} 20... Qe3 {[%clk 0:01:34.9]} 21.
Qg3 {[%clk 0:01:25.7]} 21... Qxg3 {[%clk 0:00:56.6]} 22. hxg3 {[%clk 0:01:26.6]}
22... a5 {[%clk 0:00:54.9]} 23. g6 {[%clk 0:01:21.2]} 23... f5 {[%clk
0:00:50.3]} 24. Ng1 {[%clk 0:01:19.1]} 24... Be8 {[%clk 0:00:48.6]} 25. Nf3
{[%clk 0:01:16.8]} 25... Bxg6 {[%clk 0:00:48.3]} 26. Rh1 {[%clk 0:01:16.7]}
26... Bf7 {[%clk 0:00:41.9]} 27. c5 {[%clk 0:01:13.5]} 27... Rhf8 {[%clk
0:00:23.8]} 28. Rad1 {[%clk 0:01:13.1]} 28... Kc7 {[%clk 0:00:22.9]} 29. Bc4
{[%clk 0:01:10.2]} 29... b6 {[%clk 0:00:22.1]} 30. cxb6+ {[%clk 0:01:06]} 30...
Kxb6 {[%clk 0:00:23]} 31. Ne5 {[%clk 0:01:06.7]} 31... Bg8 {[%clk 0:00:23.4]}
32. Ng6 {[%clk 0:00:57.2]} 32... Rfe8 {[%clk 0:00:23.1]} 33. Ne5 {[%clk
0:00:55.3]} 33... Rd6 {[%clk 0:00:15.6]} 34. Be2 {[%clk 0:00:53.1]} 34... Kc7
{[%clk 0:00:16]} 35. Bf3 {[%clk 0:00:51.6]} 35... Red8 {[%clk 0:00:16]} 36. Rc1
{[%clk 0:00:50]} 36... Rxd4 {[%clk 0:00:14.3]} 37. Nxc6 {[%clk 0:00:50.5]} 37...
Rd2+ {[%clk 0:00:14.2]} 38. Kb1 {[%clk 0:00:50.4]} 38... Kb6 {[%clk 0:00:09.2]}
39. Nxd8 {[%clk 0:00:47]} 39... Rxd8 {[%clk 0:00:09.9]} 40. Rc6+ {[%clk
0:00:47.4]} 40... Kb5 {[%clk 0:00:09.8]} 41. Rhc1 {[%clk 0:00:48.1]} 41... e5
{[%clk 0:00:06.1]} 42. Be2+ {[%clk 0:00:48.3]} 42... Ka4 {[%clk 0:00:06.4]} 43.
fxe5 {[%clk 0:00:46.2]} 43... Rd2 {[%clk 0:00:05.5]} 44. R1c2 {[%clk 0:00:44.4]}
44... Rd4 {[%clk 0:00:03.4]} 45. e6 {[%clk 0:00:42.6]} 45... Re4 {[%clk
0:00:03.5]} 46. b3+ {[%clk 0:00:41.2]} 46... Kxb3 {[%clk 0:00:03.5]} 47. Bd1
{[%clk 0:00:40.9]} 47... Re1 {[%clk 0:00:02.3]} 48. Rb2+ {[%clk 0:00:39.2]}
48... Ka3 {[%clk 0:00:02]} 49. Ra2# {[%clk 0:00:40.1]} 1-0

[Event "Late-Titled-Tuesday-Blitz-September-26-2023"]
[Site "Chess.com"]
[Date "2023.09.26"]
[Round "10"]
[White "brm72"]
[Black "djano"]
[Result "0-1"]
[WhiteElo "2511"]
[BlackElo "2651"]
[TimeControl "180+1"]
[EndTime "15:50:37 PDT"]
[Termination "djano won by resignation"]

1. e4 {[%clk 0:03:00.9]} 1... c5 {[%clk 0:02:59.9]} 2. Nf3 {[%clk 0:03:00.9]}
2... Nc6 {[%clk 0:03:00.3]} 3. Bb5 {[%clk 0:03:00.6]} 3... e5 {[%clk 0:03:00.2]}
4. O-O {[%clk 0:02:58.5]} 4... Nge7 {[%clk 0:03:00.3]} 5. c3 {[%clk 0:02:54.9]}
5... g6 {[%clk 0:03:00.6]} 6. d4 {[%clk 0:02:51.8]} 6... cxd4 {[%clk 0:03:01.5]}
7. cxd4 {[%clk 0:02:52.1]} 7... exd4 {[%clk 0:03:02.4]} 8. Bf4 {[%clk
0:02:51.8]} 8... Bg7 {[%clk 0:03:02]} 9. Na3 {[%clk 0:02:49.6]} 9... a6 {[%clk
0:03:00.8]} 10. Ba4 {[%clk 0:02:42.1]} 10... b5 {[%clk 0:02:59.9]} 11. Bb3
{[%clk 0:02:40.1]} 11... d5 {[%clk 0:02:46.5]} 12. exd5 {[%clk 0:02:38.6]} 12...
Nxd5 {[%clk 0:02:46.1]} 13. Re1+ {[%clk 0:02:38.8]} 13... Nce7 {[%clk
0:02:26.1]} 14. Bg5 {[%clk 0:02:33]} 14... f6 {[%clk 0:01:56.3]} 15. Qxd4 {[%clk
0:02:28.1]} 15... Bb7 {[%clk 0:01:43.5]} 16. Rad1 {[%clk 0:02:14.2]} 16... O-O
{[%clk 0:01:39.5]} 17. Rxe7 {[%clk 0:02:12.3]} 17... Qxe7 {[%clk 0:01:40.4]} 18.
Bxd5+ {[%clk 0:02:11.8]} 18... Bxd5 {[%clk 0:01:38.9]} 19. Qxd5+ {[%clk
0:02:12]} 19... Kh8 {[%clk 0:01:39.6]} 20. Be3 {[%clk 0:02:09.1]} 20... Rad8
{[%clk 0:01:33.8]} 21. Qb3 {[%clk 0:02:08.7]} 21... Rxd1+ {[%clk 0:01:28.2]} 22.
Qxd1 {[%clk 0:02:07.4]} 22... Rd8 {[%clk 0:01:28.9]} 23. Qe2 {[%clk 0:02:03.2]}
23... Qe6 {[%clk 0:01:22.7]} 24. b3 {[%clk 0:01:59.4]} 24... f5 {[%clk
0:01:23.1]} 25. g3 {[%clk 0:01:57.2]} 25... f4 {[%clk 0:01:13.8]} 26. Ng5 {[%clk
0:01:48.8]} 26... Qe7 {[%clk 0:01:02.1]} 27. gxf4 {[%clk 0:01:47.8]} 27... h6
{[%clk 0:00:59]} 28. Nc2 {[%clk 0:01:34.3]} 28... hxg5 {[%clk 0:00:58.4]} 29.
fxg5 {[%clk 0:01:35.2]} 29... Qe4 {[%clk 0:00:54.8]} 30. Ne1 {[%clk 0:01:34]}
30... Rd5 {[%clk 0:00:47.3]} 31. Qf1 {[%clk 0:01:23.5]} 31... Qg4+ {[%clk
0:00:44.5]} 32. Qg2 {[%clk 0:01:18.7]} 32... Qxg2+ {[%clk 0:00:39.1]} 33. Kxg2
{[%clk 0:01:19.6]} 33... Rd1 {[%clk 0:00:38.2]} 34. Nc2 {[%clk 0:01:17.7]} 34...
Rb1 {[%clk 0:00:32.2]} 35. Bb6 {[%clk 0:01:12.5]} 35... Rb2 {[%clk 0:00:29.1]}
36. Nb4 {[%clk 0:01:08.9]} 36... Kg8 {[%clk 0:00:27.9]} 37. Nxa6 {[%clk
0:01:08.1]} 37... Rxa2 {[%clk 0:00:28]} 38. Nc7 {[%clk 0:01:07]} 38... b4 {[%clk
0:00:26.7]} 39. Bc5 {[%clk 0:01:03.2]} 39... Rc2 {[%clk 0:00:24.5]} 40. Ne6
{[%clk 0:01:00.4]} 40... Kf7 {[%clk 0:00:18.9]} 41. Bd4 {[%clk 0:01:00]} 41...
Bxd4 {[%clk 0:00:12.1]} 42. Nxd4 {[%clk 0:01:00.9]} 42... Rc3 {[%clk 0:00:12.8]}
43. h4 {[%clk 0:00:52.4]} 43... Rd3 {[%clk 0:00:13]} 44. Nc6 {[%clk 0:00:49.6]}
44... Rxb3 {[%clk 0:00:12.5]} 45. Ne5+ {[%clk 0:00:49.5]} 45... Kg7 {[%clk
0:00:12.1]} 46. f4 {[%clk 0:00:49.7]} 46... Rc3 {[%clk 0:00:12.2]} 47. f5 {[%clk
0:00:48.5]} 47... gxf5 {[%clk 0:00:12.2]} 48. h5 {[%clk 0:00:49.3]} 48... b3
{[%clk 0:00:12.6]} 49. h6+ {[%clk 0:00:50.2]} 49... Kh7 {[%clk 0:00:12.8]} 50.
Nd7 {[%clk 0:00:50.1]} 50... b2 {[%clk 0:00:11.4]} 51. Nf6+ {[%clk 0:00:51]}
51... Kg6 {[%clk 0:00:11]} 52. h7 {[%clk 0:00:50.6]} 52... Kg7 {[%clk
0:00:11.4]} 53. g6 {[%clk 0:00:50.6]} 53... b1=Q {[%clk 0:00:09.3]} 54. h8=Q+
{[%clk 0:00:51.5]} 54... Kxh8 {[%clk 0:00:09.6]} 55. g7+ {[%clk 0:00:51.8]}
55... Kxg7 {[%clk 0:00:09.7]} 0-1

[Event "Late-Titled-Tuesday-Blitz-September-26-2023"]
[Site "Chess.com"]
[Date "2023.09.26"]
[Round "10"]
[White "SpeedofLight0"]
[Black "Korchmar_Vasiliy"]
[Result "1-0"]
[WhiteElo "3043"]
[BlackElo "2702"]
[TimeControl "180+1"]
[EndTime "15:50:39 PDT"]
[Termination "SpeedofLight0 won on time"]

1. d4 {[%clk 0:03:00.9]} 1... Nf6 {[%clk 0:02:59.7]} 2. c4 {[%clk 0:03:00.8]}
2... e6 {[%clk 0:03:00.3]} 3. Nc3 {[%clk 0:03:00.8]} 3... d5 {[%clk 0:03:00.9]}
4. cxd5 {[%clk 0:03:00.2]} 4... exd5 {[%clk 0:03:01.8]} 5. Bg5 {[%clk
0:03:00.4]} 5... Be7 {[%clk 0:03:01.8]} 6. e3 {[%clk 0:03:00.7]} 6... h6 {[%clk
0:03:02.3]} 7. Bh4 {[%clk 0:03:00.4]} 7... Bg4 {[%clk 0:03:02.9]} 8. Qc2 {[%clk
0:02:59.9]} 8... O-O {[%clk 0:03:01.4]} 9. Bd3 {[%clk 0:02:59.7]} 9... c5 {[%clk
0:02:55.1]} 10. dxc5 {[%clk 0:02:47.3]} 10... d4 {[%clk 0:02:56]} 11. exd4
{[%clk 0:02:46.1]} 11... Qxd4 {[%clk 0:02:56.9]} 12. h3 {[%clk 0:02:20]} 12...
Nc6 {[%clk 0:02:30.4]} 13. Qd2 {[%clk 0:01:59.2]} 13... Be6 {[%clk 0:01:08.5]}
14. Nf3 {[%clk 0:01:55.4]} 14... Qxc5 {[%clk 0:01:08.6]} 15. O-O {[%clk
0:01:42.4]} 15... Rad8 {[%clk 0:01:08.5]} 16. Qe2 {[%clk 0:01:29.8]} 16... Nb4
{[%clk 0:01:06.2]} 17. Bxf6 {[%clk 0:01:13.3]} 17... Bxf6 {[%clk 0:01:04.9]} 18.
Ne4 {[%clk 0:01:13.5]} 18... Qe7 {[%clk 0:00:54.5]} 19. Nxf6+ {[%clk 0:00:54.3]}
19... Qxf6 {[%clk 0:00:53.7]} 20. Be4 {[%clk 0:00:55]} 20... Rfe8 {[%clk
0:00:42.4]} 21. Qb5 {[%clk 0:00:50.9]} 21... Nd5 {[%clk 0:00:34.6]} 22. Qxb7
{[%clk 0:00:47.3]} 22... Nf4 {[%clk 0:00:32.7]} 23. Rfe1 {[%clk 0:00:43.6]}
23... Rb8 {[%clk 0:00:15.7]} 24. Qxa7 {[%clk 0:00:43.3]} 24... Rxb2 {[%clk
0:00:13]} 25. a4 {[%clk 0:00:26.1]} 25... Re2 {[%clk 0:00:12.7]} 26. Qa6 {[%clk
0:00:14.7]} 26... Nxh3+ {[%clk 0:00:02.5]} 27. gxh3 {[%clk 0:00:12.9]} 27...
Rxe4 {[%clk 0:00:01.3]} 28. Rxe4 {[%clk 0:00:03.8]} 28... Qxa1+ {[%clk
0:00:01.1]} 29. Kh2 {[%clk 0:00:03.3]} 29... Qf6 {[%clk 0:00:01.1]} 30. Re3
{[%clk 0:00:03.8]} 30... Qf4+ {[%clk 0:00:01.2]} 31. Kg2 {[%clk 0:00:04.2]}
31... Rd8 {[%clk 0:00:01.6]} 32. Qb6 {[%clk 0:00:02.9]} 32... Rd6 {[%clk
0:00:01.5]} 33. Qb8+ {[%clk 0:00:03.2]} 33... Kh7 {[%clk 0:00:01.7]} 34. Rd3
{[%clk 0:00:03.7]} 34... Bxh3+ {[%clk 0:00:01.1]} 35. Kh1 {[%clk 0:00:03.2]} 1-0